[Event "Early-Titled-Tuesday-Blitz-March-26-2024"]
[Site "Chess.com"]
[Date "2024.03.26"]
[Round "6"]
[White "Anton_Demchenko"]
[Black "Shahdad2007"]
[Result "0-1"]
[WhiteElo "2982"]
[BlackElo "2631"]
[TimeControl "180+1"]
[EndTime "9:06:43 PDT"]
[Termination "Shahdad2007 won by resignation"]

1. e4 {[%clk 0:02:49.8]} 1... c5 {[%clk 0:02:59.5]} 2. Nc3 {[%clk 0:02:46.8]}
2... Nc6 {[%clk 0:02:59.5]} 3. Bb5 {[%clk 0:02:47.4]} 3... Nd4 {[%clk
0:02:55.1]} 4. a4 {[%clk 0:02:47]} 4... a6 {[%clk 0:02:45.4]} 5. Bc4 {[%clk
0:02:46.3]} 5... e6 {[%clk 0:02:41.5]} 6. Nf3 {[%clk 0:02:46.8]} 6... Nc6 {[%clk
0:02:32.4]} 7. d4 {[%clk 0:02:46.7]} 7... cxd4 {[%clk 0:02:32.8]} 8. Nxd4 {[%clk
0:02:47.6]} 8... Qc7 {[%clk 0:02:33.2]} 9. Nxc6 {[%clk 0:02:48]} 9... bxc6
{[%clk 0:02:32.1]} 10. Qg4 {[%clk 0:02:48.2]} 10... Nf6 {[%clk 0:02:23.6]} 11.
Qg3 {[%clk 0:02:48.7]} 11... Qxg3 {[%clk 0:02:23.1]} 12. hxg3 {[%clk 0:02:49.6]}
12... d5 {[%clk 0:02:23.6]} 13. Bd3 {[%clk 0:02:49.2]} 13... h6 {[%clk
0:02:18.7]} 14. f3 {[%clk 0:02:46.2]} 14... Bb4 {[%clk 0:02:11.1]} 15. Bd2
{[%clk 0:02:45.6]} 15... Rb8 {[%clk 0:02:10.2]} 16. exd5 {[%clk 0:02:35.8]}
16... cxd5 {[%clk 0:02:06.8]} 17. a5 {[%clk 0:02:31.3]} 17... Ke7 {[%clk
0:02:03.2]} 18. Na4 {[%clk 0:02:07.6]} 18... Bxd2+ {[%clk 0:02:00.8]} 19. Kxd2
{[%clk 0:02:08.5]} 19... Nd7 {[%clk 0:02:01.1]} 20. Rhe1 {[%clk 0:02:04.4]}
20... Kd6 {[%clk 0:02:00.4]} 21. f4 {[%clk 0:02:01.9]} 21... Bb7 {[%clk
0:01:59.4]} 22. b4 {[%clk 0:01:51.8]} 22... Bc6 {[%clk 0:01:37.6]} 23. Nc5
{[%clk 0:01:47.1]} 23... Nxc5 {[%clk 0:01:10.9]} 24. bxc5+ {[%clk 0:01:48]}
24... Kxc5 {[%clk 0:01:09.6]} 25. Bxa6 {[%clk 0:01:48.9]} 25... Bb5 {[%clk
0:01:07.2]} 26. Bxb5 {[%clk 0:01:48.9]} 26... Rxb5 {[%clk 0:01:07.5]} 27. a6
{[%clk 0:01:33]} 27... Ra8 {[%clk 0:01:07.1]} 28. f5 {[%clk 0:01:08.4]} 28...
Rb6 {[%clk 0:01:00.3]} 29. fxe6 {[%clk 0:01:03.5]} 29... fxe6 {[%clk 0:00:58]}
30. a7 {[%clk 0:01:03.9]} 30... Kd6 {[%clk 0:00:54.7]} 31. Ra4 {[%clk
0:01:03.1]} 31... e5 {[%clk 0:00:47]} 32. Rea1 {[%clk 0:00:58.6]} 32... e4
{[%clk 0:00:43.9]} 33. R1a3 {[%clk 0:00:48.8]} 33... Ke5 {[%clk 0:00:42.9]} 34.
Ke3 {[%clk 0:00:47]} 34... Rc6 {[%clk 0:00:41.8]} 35. c3 {[%clk 0:00:45.1]}
35... h5 {[%clk 0:00:41.4]} 36. Ra5 {[%clk 0:00:44.8]} 36... g5 {[%clk
0:00:36.2]} 37. Kd2 {[%clk 0:00:43.3]} 37... Rc7 {[%clk 0:00:31.8]} 38. Ra6
{[%clk 0:00:37]} 38... h4 {[%clk 0:00:26.6]} 39. gxh4 {[%clk 0:00:27.8]} 39...
gxh4 {[%clk 0:00:27.5]} 40. Ke3 {[%clk 0:00:28.4]} 40... Rg7 {[%clk 0:00:24.9]}
41. Kf2 {[%clk 0:00:28.8]} 41... Rf8+ {[%clk 0:00:16.6]} 42. Ke1 {[%clk
0:00:24]} 42... Ra8 {[%clk 0:00:17.1]} 43. Ra2 {[%clk 0:00:24.4]} 43... Rg3
{[%clk 0:00:16.9]} 44. R6a3 {[%clk 0:00:22.2]} 44... h3 {[%clk 0:00:17.2]} 45.
gxh3 {[%clk 0:00:22.1]} 45... Rxh3 {[%clk 0:00:18.1]} 46. Kf1 {[%clk 0:00:14.1]}
46... Kf4 {[%clk 0:00:17.3]} 47. Rb3 {[%clk 0:00:10.4]} 47... Rh7 {[%clk
0:00:16.9]} 48. Rba3 {[%clk 0:00:09.6]} 48... Rh1+ {[%clk 0:00:15.9]} 49. Kg2
{[%clk 0:00:09.7]} 49... Rh7 {[%clk 0:00:16.8]} 50. Rf2+ {[%clk 0:00:07.9]}
50... Ke5 {[%clk 0:00:14.8]} 51. Rfa2 {[%clk 0:00:07.4]} 51... Rg8+ {[%clk
0:00:14.7]} 52. Kf1 {[%clk 0:00:07.4]} 52... Rh1+ {[%clk 0:00:14.7]} 53. Kf2
{[%clk 0:00:07.8]} 53... Rh2+ {[%clk 0:00:15.1]} 54. Kf1 {[%clk 0:00:08.3]}
54... Rh1+ {[%clk 0:00:15.4]} 55. Kf2 {[%clk 0:00:08]} 55... Rh2+ {[%clk
0:00:14.5]} 56. Kf1 {[%clk 0:00:08.7]} 56... Rxa2 {[%clk 0:00:14.8]} 57. Rxa2
{[%clk 0:00:08.8]} 57... Ra8 {[%clk 0:00:15.5]} 58. Ke2 {[%clk 0:00:08.5]} 58...
Kd6 {[%clk 0:00:16]} 59. Ke3 {[%clk 0:00:05.5]} 59... Kc5 {[%clk 0:00:16.4]} 60.
Ra3 {[%clk 0:00:04.8]} 60... Kc4 {[%clk 0:00:16.2]} 61. Kd2 {[%clk 0:00:04.6]}
61... Kb5 {[%clk 0:00:15.8]} 62. Ke3 {[%clk 0:00:04.5]} 62... Kb6 {[%clk
0:00:16.1]} 63. Kd4 {[%clk 0:00:03.1]} 63... Rxa7 {[%clk 0:00:16.4]} 64. Rb3+
{[%clk 0:00:03.5]} 64... Kc6 {[%clk 0:00:16.1]} 65. Rb1 {[%clk 0:00:02.8]} 65...
Ra4+ {[%clk 0:00:16.5]} 66. Ke3 {[%clk 0:00:03.6]} 66... Kc5 {[%clk 0:00:16.8]}
67. Rb8 {[%clk 0:00:03.2]} 67... Ra6 {[%clk 0:00:17.2]} 68. Rc8+ {[%clk
0:00:03.5]} 68... Rc6 {[%clk 0:00:17.6]} 69. Re8 {[%clk 0:00:04.2]} 69... Kc4
{[%clk 0:00:17.7]} 70. Rd8 {[%clk 0:00:04.2]} 70... Rc5 {[%clk 0:00:17.5]} 71.
Kd2 {[%clk 0:00:04.3]} 71... e3+ {[%clk 0:00:16.7]} 72. Kxe3 {[%clk 0:00:03.7]}
72... Kxc3 {[%clk 0:00:17.6]} 73. Ke2 {[%clk 0:00:04.5]} 73... d4 {[%clk
0:00:16.5]} 74. Kd1 {[%clk 0:00:04.1]} 74... Rh5 {[%clk 0:00:16.4]} 75. Ra8
{[%clk 0:00:02.2]} 75... Rh1+ {[%clk 0:00:14.9]} 76. Ke2 {[%clk 0:00:03]} 76...
d3+ {[%clk 0:00:15.1]} 77. Ke3 {[%clk 0:00:03.5]} 77... Re1+ {[%clk 0:00:15.2]}
78. Kf2 {[%clk 0:00:04]} 78... d2 {[%clk 0:00:14.2]} 79. Rc8+ {[%clk 0:00:04.9]}
79... Kb4 {[%clk 0:00:14]} 80. Rb8+ {[%clk 0:00:05.5]} 80... Ka5 {[%clk
0:00:14]} 81. Ra8+ {[%clk 0:00:05.6]} 81... Kb6 {[%clk 0:00:13.9]} 82. Rb8+
{[%clk 0:00:06.1]} 82... Ka7 {[%clk 0:00:13.9]} 83. Rd8 {[%clk 0:00:05.6]} 83...
d1=Q {[%clk 0:00:13.9]} 0-1

[Event "Early-Titled-Tuesday-Blitz-March-26-2024"]
[Site "Chess.com"]
[Date "2024.03.26"]
[Round "6"]
[White "KetiTsatsalashvili"]
[Black "Witik"]
[Result "0-1"]
[WhiteElo "2442"]
[BlackElo "2735"]
[TimeControl "180+1"]
[EndTime "9:06:43 PDT"]
[Termination "Witik won on time"]

1. d4 {[%clk 0:03:00.9]} 1... Nf6 {[%clk 0:02:59.7]} 2. Nf3 {[%clk 0:03:00.4]}
2... g6 {[%clk 0:02:58.9]} 3. c4 {[%clk 0:02:54.7]} 3... Bg7 {[%clk 0:02:58.5]}
4. Nc3 {[%clk 0:02:54.9]} 4... d6 {[%clk 0:02:55.7]} 5. e4 {[%clk 0:02:55]} 5...
O-O {[%clk 0:02:55]} 6. Be2 {[%clk 0:02:49.5]} 6... e5 {[%clk 0:02:54.8]} 7. O-O
{[%clk 0:02:44]} 7... Na6 {[%clk 0:02:50.6]} 8. Bg5 {[%clk 0:02:33]} 8... h6
{[%clk 0:02:48]} 9. Bxf6 {[%clk 0:02:21.6]} 9... Bxf6 {[%clk 0:02:45.3]} 10. Nd5
{[%clk 0:02:22.2]} 10... Bg7 {[%clk 0:02:44.2]} 11. dxe5 {[%clk 0:02:03.8]}
11... dxe5 {[%clk 0:02:44.2]} 12. Qc2 {[%clk 0:01:52.9]} 12... c6 {[%clk
0:02:44.2]} 13. Ne3 {[%clk 0:01:52.5]} 13... Qe7 {[%clk 0:02:39.5]} 14. Qc3
{[%clk 0:01:41]} 14... f5 {[%clk 0:02:35.9]} 15. h3 {[%clk 0:01:07.4]} 15... Nc5
{[%clk 0:02:25.6]} 16. Qa3 {[%clk 0:01:04.1]} 16... Re8 {[%clk 0:02:22.1]} 17.
Nd2 {[%clk 0:00:55.1]} 17... f4 {[%clk 0:02:07.1]} 18. Ng4 {[%clk 0:00:49.4]}
18... h5 {[%clk 0:01:52.3]} 19. Nh2 {[%clk 0:00:49.8]} 19... a5 {[%clk
0:01:49.3]} 20. Nb3 {[%clk 0:00:35.9]} 20... Ne6 {[%clk 0:01:46.4]} 21. Qxe7
{[%clk 0:00:33]} 21... Rxe7 {[%clk 0:01:47.3]} 22. a4 {[%clk 0:00:27]} 22... b6
{[%clk 0:01:33.4]} 23. Rad1 {[%clk 0:00:24.9]} 23... c5 {[%clk 0:01:25.1]} 24.
Rd6 {[%clk 0:00:20.5]} 24... Rb8 {[%clk 0:01:25.7]} 25. Nf3 {[%clk 0:00:18.1]}
25... Bf6 {[%clk 0:01:23.1]} 26. Rfd1 {[%clk 0:00:17.9]} 26... Kg7 {[%clk
0:01:22.3]} 27. Ne1 {[%clk 0:00:17.2]} 27... Nd4 {[%clk 0:01:18.3]} 28. Nxd4
{[%clk 0:00:16.5]} 28... exd4 {[%clk 0:01:19]} 29. f3 {[%clk 0:00:14]} 29... Be5
{[%clk 0:01:19.3]} 30. Rd5 {[%clk 0:00:12.9]} 30... Bb7 {[%clk 0:01:16.5]} 31.
Rxe5 {[%clk 0:00:13.3]} 31... Rxe5 {[%clk 0:01:16.6]} 32. Nd3 {[%clk 0:00:14.2]}
32... Re7 {[%clk 0:01:12.9]} 33. Nxf4 {[%clk 0:00:14.5]} 33... Bc6 {[%clk
0:01:12.4]} 34. Nd5 {[%clk 0:00:13.7]} 34... Reb7 {[%clk 0:00:52.6]} 35. b3
{[%clk 0:00:12.9]} 35... g5 {[%clk 0:00:53.2]} 36. Kf2 {[%clk 0:00:09.9]} 36...
Rf8 {[%clk 0:00:53.7]} 37. Rh1 {[%clk 0:00:08.4]} 37... h4 {[%clk 0:00:51.1]}
38. Bd3 {[%clk 0:00:08.1]} 38... Rbb8 {[%clk 0:00:49.6]} 39. Ke2 {[%clk
0:00:08.5]} 39... Rbe8 {[%clk 0:00:49.3]} 40. Kd2 {[%clk 0:00:08.2]} 40... Re6
{[%clk 0:00:49.6]} 41. Re1 {[%clk 0:00:08.2]} 41... Be8 {[%clk 0:00:46.3]} 42.
Rh1 {[%clk 0:00:08.6]} 42... Bh5 {[%clk 0:00:46.6]} 43. Nc7 {[%clk 0:00:08.4]}
43... Rc6 {[%clk 0:00:40.4]} 44. Nd5 {[%clk 0:00:08.8]} 44... Rd6 {[%clk
0:00:39.6]} 45. Be2 {[%clk 0:00:08.8]} 45... Bf7 {[%clk 0:00:39.4]} 46. Kd3
{[%clk 0:00:09.2]} 46... Re8 {[%clk 0:00:38.2]} 47. Kd2 {[%clk 0:00:09]} 47...
Re5 {[%clk 0:00:38.6]} 48. Bd3 {[%clk 0:00:09.3]} 48... Bh5 {[%clk 0:00:34.2]}
49. Rh2 {[%clk 0:00:09.2]} 49... Re8 {[%clk 0:00:33.8]} 50. Rh1 {[%clk
0:00:09.5]} 50... Rf8 {[%clk 0:00:34.3]} 51. Rg1 {[%clk 0:00:09.3]} 51... Kh6
{[%clk 0:00:34.4]} 52. Be2 {[%clk 0:00:08.9]} 52... Bf7 {[%clk 0:00:33.8]} 53.
Bd3 {[%clk 0:00:08.3]} 53... Bh5 {[%clk 0:00:31.8]} 54. Ne7 {[%clk 0:00:08.4]}
54... Re6 {[%clk 0:00:23]} 55. Nd5 {[%clk 0:00:08.5]} 55... Bxf3 {[%clk
0:00:16.3]} 56. gxf3 {[%clk 0:00:08.5]} 56... Rxf3 {[%clk 0:00:16.9]} 57. Rh1
{[%clk 0:00:08.2]} 57... Rf2+ {[%clk 0:00:17]} 58. Ke1 {[%clk 0:00:07.9]} 58...
Rb2 {[%clk 0:00:17]} 59. Rf1 {[%clk 0:00:07.1]} 59... Rxb3 {[%clk 0:00:17.1]}
60. Kd2 {[%clk 0:00:07]} 60... Rb2+ {[%clk 0:00:16.1]} 61. Bc2 {[%clk
0:00:07.2]} 61... Rxe4 {[%clk 0:00:15.9]} 62. Rf6+ {[%clk 0:00:07.2]} 62... Kg7
{[%clk 0:00:15.9]} 63. Rxb6 {[%clk 0:00:05.3]} 63... Rxb6 {[%clk 0:00:11.7]} 64.
Nxb6 {[%clk 0:00:06.2]} 64... Re3 {[%clk 0:00:11.2]} 65. Bf5 {[%clk 0:00:04.4]}
65... Ra3 {[%clk 0:00:05.5]} 66. Bg4 {[%clk 0:00:03.9]} 66... Kf6 {[%clk
0:00:05.4]} 67. Nd5+ {[%clk 0:00:04.2]} 67... Ke5 {[%clk 0:00:05.6]} 68. Nb6
{[%clk 0:00:03.9]} 68... Ra2+ {[%clk 0:00:04]} 69. Kd3 {[%clk 0:00:03.8]} 69...
Ra3+ {[%clk 0:00:04.9]} 70. Kd2 {[%clk 0:00:04.3]} 70... Kf4 {[%clk 0:00:05.8]}
71. Nd7 {[%clk 0:00:04.4]} 71... Rxa4 {[%clk 0:00:02.9]} 72. Nxc5 {[%clk
0:00:04.4]} 72... Rxc4 {[%clk 0:00:03.6]} 73. Ne6+ {[%clk 0:00:03.9]} 73... Kg3
{[%clk 0:00:03.5]} 74. Nxg5 {[%clk 0:00:04]} 74... a4 {[%clk 0:00:04.1]} 75. Kd3
{[%clk 0:00:03.5]} 75... a3 {[%clk 0:00:02.2]} 76. Ne4+ {[%clk 0:00:02.6]} 76...
Kh2 {[%clk 0:00:02]} 77. Nd2 {[%clk 0:00:01.7]} 77... a2 {[%clk 0:00:02.3]} 78.
Nb3 {[%clk 0:00:01.6]} 78... Rc3+ {[%clk 0:00:02.4]} 0-1

[Event "Early-Titled-Tuesday-Blitz-March-26-2024"]
[Site "Chess.com"]
[Date "2024.03.26"]
[Round "6"]
[White "Mikhail_Bryakin"]
[Black "chess_blitz00"]
[Result "1/2-1/2"]
[WhiteElo "2854"]
[BlackElo "2571"]
[TimeControl "180+1"]
[EndTime "9:07:43 PDT"]
[Termination "Game drawn by repetition"]

1. Nf3 {[%clk 0:03:00.9]} 1... d6 {[%clk 0:02:58.9]} 2. e4 {[%clk 0:02:59.3]}
2... Nf6 {[%clk 0:02:57.4]} 3. Nc3 {[%clk 0:02:59]} 3... Bg4 {[%clk 0:02:56.2]}
4. Be2 {[%clk 0:02:58.9]} 4... c5 {[%clk 0:02:53.5]} 5. O-O {[%clk 0:02:59]}
5... Nc6 {[%clk 0:02:53.5]} 6. d3 {[%clk 0:02:59.3]} 6... e6 {[%clk 0:02:53]} 7.
Re1 {[%clk 0:02:59.8]} 7... Be7 {[%clk 0:02:52.3]} 8. h3 {[%clk 0:03:00.2]} 8...
Bxf3 {[%clk 0:02:50.6]} 9. Bxf3 {[%clk 0:03:00.4]} 9... O-O {[%clk 0:02:51]} 10.
g3 {[%clk 0:03:00.7]} 10... Nd4 {[%clk 0:02:46]} 11. Bg2 {[%clk 0:03:01.2]}
11... b5 {[%clk 0:02:46.1]} 12. Be3 {[%clk 0:03:01.4]} 12... b4 {[%clk
0:02:44.3]} 13. Ne2 {[%clk 0:03:00.7]} 13... e5 {[%clk 0:02:42.9]} 14. f4 {[%clk
0:02:58.6]} 14... a5 {[%clk 0:02:39.8]} 15. a4 {[%clk 0:02:57.6]} 15... b3
{[%clk 0:02:29.6]} 16. Nxd4 {[%clk 0:02:46.7]} 16... cxd4 {[%clk 0:02:27]} 17.
Bd2 {[%clk 0:02:47.4]} 17... bxc2 {[%clk 0:02:26.8]} 18. Qxc2 {[%clk 0:02:48.3]}
18... Qb6 {[%clk 0:02:11.3]} 19. b3 {[%clk 0:02:45.5]} 19... Rfc8 {[%clk
0:02:06.8]} 20. Qd1 {[%clk 0:02:46]} 20... Nd7 {[%clk 0:01:53.7]} 21. Rb1 {[%clk
0:02:40.2]} 21... Nc5 {[%clk 0:01:52]} 22. Bf1 {[%clk 0:02:40.7]} 22... Na6
{[%clk 0:01:34.1]} 23. Re2 {[%clk 0:02:36.1]} 23... Nb4 {[%clk 0:01:32.2]} 24.
Be1 {[%clk 0:02:36.7]} 24... Rc5 {[%clk 0:01:25.3]} 25. Rf2 {[%clk 0:02:09]}
25... Rac8 {[%clk 0:01:11.8]} 26. Qg4 {[%clk 0:02:08.9]} 26... Nc2 {[%clk
0:01:02.4]} 27. Qd7 {[%clk 0:01:49]} 27... Qc7 {[%clk 0:00:52.1]} 28. Qxc7
{[%clk 0:01:35]} 28... R8xc7 {[%clk 0:00:53]} 29. Rxc2 {[%clk 0:01:35.5]} 29...
Rxc2 {[%clk 0:00:52.3]} 30. Bxa5 {[%clk 0:01:36.4]} 30... Rb7 {[%clk 0:00:34]}
31. Be1 {[%clk 0:01:31.2]} 31... Ra2 {[%clk 0:00:25]} 32. a5 {[%clk 0:01:30]}
32... Bd8 {[%clk 0:00:22.3]} 33. Rc1 {[%clk 0:01:29.6]} 33... Kf8 {[%clk
0:00:17.2]} 34. b4 {[%clk 0:01:30.3]} 34... Ke8 {[%clk 0:00:15.3]} 35. h4 {[%clk
0:01:27.3]} 35... Kd7 {[%clk 0:00:14.5]} 36. Bh3+ {[%clk 0:01:28]} 36... Ke8
{[%clk 0:00:13.4]} 37. Bc8 {[%clk 0:01:24.9]} 37... Rc7 {[%clk 0:00:11.5]} 38.
Rxc7 {[%clk 0:01:19.6]} 38... Bxc7 {[%clk 0:00:12.4]} 39. fxe5 {[%clk
0:01:18.8]} 39... dxe5 {[%clk 0:00:12]} 40. Ba6 {[%clk 0:01:19.5]} 40... Bd6
{[%clk 0:00:09.3]} 41. b5 {[%clk 0:01:03.7]} 41... Ra1 {[%clk 0:00:04.9]} 42.
Kf2 {[%clk 0:01:04.3]} 42... Rxe1 {[%clk 0:00:04.8]} 43. Kxe1 {[%clk 0:01:05.2]}
43... Bb4+ {[%clk 0:00:05.1]} 44. Ke2 {[%clk 0:01:01]} 44... Bxa5 {[%clk
0:00:06]} 45. Bb7 {[%clk 0:01:00.8]} 45... Ke7 {[%clk 0:00:06.2]} 46. Bd5 {[%clk
0:01:00.1]} 46... f6 {[%clk 0:00:05.9]} 47. Kf3 {[%clk 0:00:49.1]} 47... Bb6
{[%clk 0:00:05.6]} 48. Kg4 {[%clk 0:00:48.9]} 48... g6 {[%clk 0:00:05.2]} 49. h5
{[%clk 0:00:43.8]} 49... Ba5 {[%clk 0:00:05.2]} 50. Bg8 {[%clk 0:00:44.1]} 50...
gxh5+ {[%clk 0:00:03.5]} 51. Kxh5 {[%clk 0:00:44.5]} 51... Kf8 {[%clk
0:00:03.6]} 52. Bxh7 {[%clk 0:00:44.4]} 52... Kg7 {[%clk 0:00:04]} 53. Bf5
{[%clk 0:00:44.2]} 53... Bb6 {[%clk 0:00:04.4]} 54. Bc8 {[%clk 0:00:44]} 54...
Ba5 {[%clk 0:00:04.2]} 55. Kg4 {[%clk 0:00:44.3]} 55... Kf7 {[%clk 0:00:04]} 56.
Kf5 {[%clk 0:00:45]} 56... Bb6 {[%clk 0:00:03.5]} 57. Be6+ {[%clk 0:00:45.4]}
57... Ke7 {[%clk 0:00:03.7]} 58. Ba2 {[%clk 0:00:46.3]} 58... Bc7 {[%clk
0:00:04.1]} 59. Kg6 {[%clk 0:00:46.8]} 59... Bb6 {[%clk 0:00:04.3]} 60. Bc4
{[%clk 0:00:47.1]} 60... Bc7 {[%clk 0:00:04.8]} 61. Kf5 {[%clk 0:00:45]} 61...
Bb6 {[%clk 0:00:05.1]} 62. g4 {[%clk 0:00:45.7]} 62... Bc7 {[%clk 0:00:05.3]}
63. Bb3 {[%clk 0:00:46.6]} 63... Bb8 {[%clk 0:00:02.7]} 64. b6 {[%clk
0:00:46.9]} 64... Bd6 {[%clk 0:00:03.4]} 65. Bd5 {[%clk 0:00:46.7]} 65... Bb8
{[%clk 0:00:03.8]} 66. b7 {[%clk 0:00:45.1]} 66... Bd6 {[%clk 0:00:04.2]} 67.
Kg6 {[%clk 0:00:45.6]} 67... Bb8 {[%clk 0:00:04.3]} 68. Bc4 {[%clk 0:00:46]}
68... Bc7 {[%clk 0:00:04.8]} 69. Kh5 {[%clk 0:00:46.6]} 69... Bb8 {[%clk
0:00:05.4]} 70. Bd5 {[%clk 0:00:46.4]} 70... Bc7 {[%clk 0:00:06]} 71. Kh4 {[%clk
0:00:47.2]} 71... Bb8 {[%clk 0:00:06.6]} 72. Kg3 {[%clk 0:00:48.1]} 72... Bc7
{[%clk 0:00:07.3]} 73. Kf3 {[%clk 0:00:49]} 73... Bb8 {[%clk 0:00:08]} 74. Ke2
{[%clk 0:00:49.9]} 74... Bc7 {[%clk 0:00:08.6]} 75. Kd2 {[%clk 0:00:50.8]} 75...
Bb8 {[%clk 0:00:09.3]} 76. Kc2 {[%clk 0:00:51.5]} 76... Kd6 {[%clk 0:00:10]} 77.
Kb3 {[%clk 0:00:52.4]} 77... Kc5 {[%clk 0:00:10.5]} 78. Ka4 {[%clk 0:00:53.1]}
78... Kb6 {[%clk 0:00:10.4]} 79. Kb4 {[%clk 0:00:52.9]} 79... Bd6+ {[%clk
0:00:11]} 80. Kc4 {[%clk 0:00:53.4]} 80... Bb8 {[%clk 0:00:11.3]} 81. Kb3 {[%clk
0:00:49.8]} 81... Kb5 {[%clk 0:00:09.9]} 82. Be6 {[%clk 0:00:49.2]} 82... Bc7
{[%clk 0:00:08.4]} 83. Bc8 {[%clk 0:00:50.1]} 83... Bb8 {[%clk 0:00:08.3]} 84.
Bd7+ {[%clk 0:00:50.6]} 84... Kc5 {[%clk 0:00:08.4]} 85. Ka4 {[%clk 0:00:50.2]}
85... Bc7 {[%clk 0:00:08.8]} 86. Bf5 {[%clk 0:00:49.7]} 86... Kb6 {[%clk
0:00:06.3]} 87. Bc8 {[%clk 0:00:50.3]} 87... Kc5 {[%clk 0:00:06.7]} 88. Be6
{[%clk 0:00:50.8]} 88... Kb6 {[%clk 0:00:06.5]} 89. Bd5 {[%clk 0:00:51.5]} 89...
Bd6 {[%clk 0:00:06.7]} 90. Kb3 {[%clk 0:00:50.6]} 90... Kb5 {[%clk 0:00:06.6]}
91. Kc2 {[%clk 0:00:50.3]} 91... Bb8 {[%clk 0:00:06.5]} 92. Kd2 {[%clk
0:00:51.2]} 92... Kc5 {[%clk 0:00:07.1]} 93. Ke2 {[%clk 0:00:50.7]} 93... Kd6
{[%clk 0:00:07.5]} 94. Kf3 {[%clk 0:00:51.4]} 94... Ke7 {[%clk 0:00:08]} 95. Kg3
{[%clk 0:00:51.6]} 95... Bc7 {[%clk 0:00:08.6]} 96. Kh4 {[%clk 0:00:52]} 96...
Bb8 {[%clk 0:00:09.1]} 97. g5 {[%clk 0:00:52.6]} 97... fxg5+ {[%clk 0:00:09.1]}
98. Kxg5 {[%clk 0:00:53.3]} 98... Kd6 {[%clk 0:00:09.5]} 99. Kf6 {[%clk
0:00:53.8]} 99... Kc5 {[%clk 0:00:09.8]} 100. Ke6 {[%clk 0:00:54]} 100... Kb6
{[%clk 0:00:10]} 101. Kd7 {[%clk 0:00:54.6]} 101... Ka7 {[%clk 0:00:07.7]} 102.
Kd8 {[%clk 0:00:55.2]} 102... Bd6 {[%clk 0:00:07.3]} 103. Kc8 {[%clk 0:00:55.5]}
103... Bb8 {[%clk 0:00:07.2]} 104. Kd7 {[%clk 0:00:54.7]} 104... Kb6 {[%clk
0:00:07.1]} 105. Kd8 {[%clk 0:00:53.1]} 105... Ka7 {[%clk 0:00:08]} 106. Ke7
{[%clk 0:00:52.6]} 106... Bc7 {[%clk 0:00:07.9]} 107. Bc6 {[%clk 0:00:50.6]}
107... Kb8 {[%clk 0:00:06.3]} 108. Ke6 {[%clk 0:00:48.8]} 108... Ka7 {[%clk
0:00:06.4]} 109. Kd7 {[%clk 0:00:49.3]} 109... Kb8 {[%clk 0:00:06.9]} 110. Bd5
{[%clk 0:00:49.5]} 110... Ba5 {[%clk 0:00:06.5]} 111. Kd6 {[%clk 0:00:48.8]}
111... Bc7+ {[%clk 0:00:06.7]} 112. Ke6 {[%clk 0:00:49.3]} 112... Ka7 {[%clk
0:00:06.5]} 113. Ke7 {[%clk 0:00:49.2]} 113... Kb8 {[%clk 0:00:07]} 114. Bc6
{[%clk 0:00:48.8]} 114... Ba5 {[%clk 0:00:06.6]} 115. Ke6 {[%clk 0:00:44.2]}
115... Bc7 {[%clk 0:00:07]} 116. Kd5 {[%clk 0:00:45.1]} 116... Ka7 {[%clk
0:00:06.9]} 117. Kc4 {[%clk 0:00:46]} 117... Kb8 {[%clk 0:00:07.5]} 118. Kc5
{[%clk 0:00:46.9]} 118... Ka7 {[%clk 0:00:07.7]} 119. Kb5 {[%clk 0:00:47.5]}
119... Kb8 {[%clk 0:00:08.2]} 120. Ka6 {[%clk 0:00:48.4]} 120... Bd8 {[%clk
0:00:07.5]} 121. Bb5 {[%clk 0:00:48.5]} 121... Bg5 {[%clk 0:00:08.1]} 122. Bc4
{[%clk 0:00:48.2]} 122... Bf4 {[%clk 0:00:09]} 123. Bd5 {[%clk 0:00:48]} 123...
Bh2 {[%clk 0:00:09.9]} 124. Kb5 {[%clk 0:00:48.5]} 124... Bg3 {[%clk 0:00:10.8]}
125. Kc6 {[%clk 0:00:49.2]} 125... Bh2 {[%clk 0:00:11.7]} 126. Kd7 {[%clk
0:00:50.1]} 126... Bg3 {[%clk 0:00:12.6]} 127. Ke6 {[%clk 0:00:51]} 127... Bf4
{[%clk 0:00:13.4]} 128. Kf5 {[%clk 0:00:51.9]} 128... Kc7 {[%clk 0:00:12.6]}
129. Kg4 {[%clk 0:00:52.8]} 129... Kb8 {[%clk 0:00:13.5]} 130. Kf3 {[%clk
0:00:52.9]} 130... Kc7 {[%clk 0:00:14.1]} 131. Bc6 {[%clk 0:00:53.4]} 131... Kb8
{[%clk 0:00:15]} 132. Kg4 {[%clk 0:00:54.1]} 132... Kc7 {[%clk 0:00:15.7]} 133.
Kf5 {[%clk 0:00:55]} 133... Kb8 {[%clk 0:00:16.6]} 134. Ke6 {[%clk 0:00:55.6]}
134... Bg3 {[%clk 0:00:16.9]} 135. Kd7 {[%clk 0:00:56.2]} 135... Bf4 {[%clk
0:00:17.8]} 136. Bd5 {[%clk 0:00:56.7]} 136... Bh2 {[%clk 0:00:18.7]} 137. Kc6
{[%clk 0:00:57.6]} 137... Bg3 {[%clk 0:00:19.4]} 138. Kb5 {[%clk 0:00:58.5]}
138... Bf4 {[%clk 0:00:20.3]} 139. Kc5 {[%clk 0:00:57.8]} 139... Bg3 {[%clk
0:00:21.2]} 140. Kc6 {[%clk 0:00:58.7]} 140... Bf4 {[%clk 0:00:22.1]} 141. Kb6
{[%clk 0:00:59]} 141... Bg3 {[%clk 0:00:22.8]} 142. Kc6 {[%clk 0:00:59.8]}
1/2-1/2

[Event "Early-Titled-Tuesday-Blitz-March-26-2024"]
[Site "Chess.com"]
[Date "2024.03.26"]
[Round "7"]
[White "emeli_chess"]
[Black "karinachess1"]
[Result "0-1"]
[WhiteElo "2392"]
[BlackElo "2601"]
[TimeControl "180+1"]
[EndTime "9:10:24 PDT"]
[Termination "karinachess1 won by resignation"]

1. d4 {[%clk 0:03:00.9]} 1... Nf6 {[%clk 0:02:59.8]} 2. c4 {[%clk 0:03:01.1]}
2... e6 {[%clk 0:03:00.4]} 3. Nc3 {[%clk 0:03:01.1]} 3... d5 {[%clk 0:03:01.2]}
4. cxd5 {[%clk 0:03:00.4]} 4... exd5 {[%clk 0:03:01.7]} 5. Bg5 {[%clk
0:03:00.5]} 5... c6 {[%clk 0:03:02.3]} 6. Qc2 {[%clk 0:03:00.3]} 6... Be7 {[%clk
0:03:03]} 7. e3 {[%clk 0:03:00.4]} 7... Nbd7 {[%clk 0:03:03.7]} 8. Bd3 {[%clk
0:03:00]} 8... h6 {[%clk 0:03:04.2]} 9. Bh4 {[%clk 0:02:59.8]} 9... Nh5 {[%clk
0:03:04.9]} 10. Bxe7 {[%clk 0:02:58.6]} 10... Qxe7 {[%clk 0:03:05.8]} 11. Nge2
{[%clk 0:02:58.4]} 11... Nb6 {[%clk 0:03:06.4]} 12. O-O-O {[%clk 0:02:56.4]}
12... Bd7 {[%clk 0:03:06.6]} 13. Kb1 {[%clk 0:02:56]} 13... O-O-O {[%clk
0:03:07.2]} 14. Nc1 {[%clk 0:02:56]} 14... Kb8 {[%clk 0:03:06.7]} 15. Nb3 {[%clk
0:02:56]} 15... Nf6 {[%clk 0:03:05.6]} 16. Nc5 {[%clk 0:02:55.4]} 16... Bc8
{[%clk 0:02:59.5]} 17. Rc1 {[%clk 0:02:53.6]} 17... Rhe8 {[%clk 0:02:57.3]} 18.
N3a4 {[%clk 0:02:52.7]} 18... Nxa4 {[%clk 0:02:57]} 19. Qxa4 {[%clk 0:02:52.6]}
19... Nd7 {[%clk 0:02:55.3]} 20. Na6+ {[%clk 0:02:35]} 20... bxa6 {[%clk
0:02:51.5]} 21. Qxc6 {[%clk 0:02:34.9]} 21... Nb6 {[%clk 0:02:48.9]} 22. Rc3
{[%clk 0:02:13.1]} 22... Bb7 {[%clk 0:02:49.1]} 23. Qc5 {[%clk 0:02:04.8]} 23...
Na4 {[%clk 0:02:48.5]} 0-1